fUSD/lending_fUSD_20260111
["ID","MTS","AMOUNT","RATE_DAILY","PERIOD"]
[401291887,1768108283290,-1000.0,0.00041096,30]
[401291888,1768108283299,-1000.0,0.00041096,30]
[401291889,1768108283308,-1000.0,0.00041096,30]
[401291890,1768108283317,-1000.0,0.00041096,30]
[401291891,1768108283326,-1000.0,0.00041096,30]
[401291892,1768108283336,-1000.0,0.00041096,30]
[401291893,1768108283346,-160.0,0.00041096,112]
[401291894,1768108283355,-1235.5,0.00041096,79]
[401291895,1768108283364,-947.5,0.00041096,86]
[401291896,1768108283374,-192.77462663,0.00041096,70]
[401291897,1768108283383,-985.5,0.00041096,80]
[401291898,1768108283393,-1129.5,0.00041096,63]
[401291899,1768108283402,-907.32867614,0.00041096,56]
[401291900,1768108283412,-604.46573523,0.00041096,54]
[401291901,1768108283422,-473.8,0.00041096,119]
[401291902,1768108283431,-4417.27420399,0.00041098,2]
[401291903,1768108283444,-185.09692891,0.000411,120]
[401291904,1768108283453,-185.09692891,0.000411,120]
[401291905,1768108283463,-185.09692891,0.000411,120]
[401291906,1768108283472,-185.09,0.000411,120]
[401291907,1768108283482,-157.05193968,0.000411,120]
[401291908,1768108283492,-157.05193968,0.000411,120]
[401291909,1768108283501,-157.05193968,0.000411,120]
[401291910,1768108283510,-157.05193968,0.000411,120]
[401291911,1768108283521,-157.05193968,0.000411,120]
[401291912,1768108283530,-157.05193968,0.000411,120]
[401291913,1768108283539,-157.05193968,0.000411,120]
[401291914,1768108283549,-157.05193968,0.000411,120]
[401291915,1768108283558,-157.05193968,0.000411,120]
[401291916,1768108283568,-157.05193968,0.000411,120]
[401291917,1768108283577,-157.05,0.000411,120]
[401291918,1768108283587,-164.07882022,0.000411,120]
[401291919,1768108283597,-164.07882022,0.000411,120]
[401291920,1768108283607,-164.07882022,0.000411,120]
[401291921,1768108283616,-164.07882022,0.000411,120]
[401291922,1768108283626,-164.07882022,0.000411,120]
[401291923,1768108283635,-164.07882022,0.000411,120]
[401291924,1768108283644,-164.07882022,0.000411,120]
[401291925,1768108283654,-164.07,0.000411,120]
[401291926,1768108283663,-153.1402322,0.000411,120]
[401291927,1768108283673,-153.1402322,0.000411,120]
[401291928,1768108283682,-153.1402322,0.000411,120]
[401291929,1768108283694,-153.1402322,0.000411,120]
[401291930,1768108283704,-153.1402322,0.000411,120]
[401291931,1768108283713,-153.1402322,0.000411,120]
[401291932,1768108283723,-153.1402322,0.000411,120]
[401291933,1768108283733,-153.1402322,0.000411,120]
[401291934,1768108283742,-153.1402322,0.000411,120]
[401291935,1768108283752,-153.1402322,0.000411,120]
[401291936,1768108283762,-153.1402322,0.000411,120]
[401291937,1768108283772,-153.1402322,0.000411,120]
[401291938,1768108283782,-153.1402322,0.000411,120]
[401291939,1768108283791,-153.1402322,0.000411,120]
[401291940,1768108283800,-153.1402322,0.000411,120]
[401291941,1768108283810,-153.1402322,0.000411,120]
[401291942,1768108283820,-153.1402322,0.000411,120]
[401291943,1768108283830,-153.1402322,0.000411,120]
[401291944,1768108283840,-153.1402322,0.000411,120]
[401291945,1768108283849,-153.14,0.000411,120]
[401291946,1768108283859,-151.2,0.0004112,120]
[401291947,1768108283869,-152.28,0.00041142,120]
[401291948,1768108283879,-151.0,0.000412,120]
[401291949,1768108283889,-151.2,0.0004122,120]
[401291950,1768108283898,-2196.66251052,0.0004123,5]
[401291951,1768108283907,-152.28,0.00041242,120]
[401291952,1768108283917,-508.0,0.00041247,19]
[401291953,1768108283926,-151.0,0.000413,120]
[401291954,1768108283936,-151.2,0.0004132,120]
[401291955,1768108283946,-1064.09022431,0.0004133,7]
[401291956,1768108283956,-152.28,0.00041342,120]
[401291957,1768108283965,-800.0,0.00041368,13]
[401291958,1768108283974,-800.0,0.00041368,13]
[401291959,1768108283984,-800.0,0.00041368,13]
[401291960,1768108283994,-423.0,0.00041368,13]
[401291961,1768108284003,-800.0,0.00041368,13]
[401291962,1768108284012,-800.0,0.00041368,13]
[401291963,1768108284023,-200.0,0.00041368,2]
[401291964,1768108284032,-200.0,0.00041368,2]
[401291965,1768108284041,-200.0,0.00041368,2]
[401291966,1768108284051,-200.0,0.00041368,2]
[401291967,1768108284060,-200.0,0.00041368,2]
[401291968,1768108284070,-200.0,0.00041368,2]
[401291969,1768108284079,-800.0,0.00041368,13]
[401291970,1768108284089,-800.0,0.00041368,13]
[401291971,1768108284098,-200.0,0.00041368,2]
[401291972,1768108284108,-200.0,0.00041368,2]
[401291973,1768108284118,-200.0,0.00041368,2]
[401291974,1768108284128,-200.0,0.00041368,2]
[401291975,1768108284138,-200.0,0.00041368,2]
[401291976,1768108284148,-200.0,0.00041368,2]
[401291977,1768108284157,-1000.0,0.0004137,30]
[401291978,1768108284167,-300.0,0.000414,120]
[401291979,1768108284177,-629.28,0.00041412,2]
[401291980,1768108284187,-482.91,0.00041413,30]
[401291981,1768108284196,-661.7,0.00041413,30]
[401291982,1768108284205,-1067.6455907,0.00041414,120]
[401291983,1768108284215,-151.2,0.0004142,120]
[401291984,1768108284224,-3000.0,0.00041494,60]
[401291985,1768108284234,-1125.88,0.000415,30]
[401291986,1768108284244,-151.2,0.0004152,120]
[401291987,1768108284254,-200.0,0.00041537,120]
[401291988,1768108284263,-152.0,0.00041538,120]
[401291989,1768108284273,-1355.9,0.00041616,30]
[401291990,1768108284282,-151.2,0.0004162,120]
[401291991,1768108284291,-1000.0,0.00041644,30]
[401291992,1768108284300,-600.0,0.00041644,2]
[401291993,1768108284310,-151.2,0.0004172,120]
[401291994,1768108284320,-1000.0,0.00041768,60]
[401291995,1768108284330,-151.0,0.000418,120]
[401291996,1768108284340,-508.0,0.00041808,20]
[401291997,1768108284349,-151.2,0.0004182,120]
[401291998,1768108284359,-1712.62518557,0.000419,2]
[401291999,1768108284368,-11224.05910845,0.000419,2]
[401292000,1768108284378,-52282.96214824,0.000419,2]
[401292001,1768108284387,-15600.77875045,0.000419,4]
[401292002,1768108284397,-6293.66444459,0.000419,4]
[401292003,1768108284407,-181170.96629631,0.000419,14]
[401292004,1768108284419,-130000.0,0.000419,14]
[401292005,1768108284430,-8257.07127896,0.000419,14]
[401292006,1768108284440,-151.0,0.000419,120]
[401292007,1768108284450,-736.29637837,0.000419,2]
[401292008,1768108284459,-477.09866015,0.000419,5]
[401292009,1768108284468,-16473.27691856,0.000419,2]
[401292010,1768108284478,-1132.4333687,0.000419,2]
[401292011,1768108284487,-15303.68945607,0.000419,2]
[401292012,1768108284496,-1000.0,0.00041918,30]
[401292013,1768108284505,-151.2,0.0004192,120]
[401292014,1768108284514,-157.17581635,0.00041952,2]
[401292015,1768108284523,-170.10299078,0.0004198,120]
[401292016,1768108284533,-397062.56237842,0.00041999,2]
[401292017,1768108284542,-183.8943423,0.00041999,2]
[401292018,1768108284703,-8546.7,0.00042,14]
[401292019,1768108284712,-517.62,0.00042,20]
[401292020,1768108284722,-1005.6276949,0.00042,10]
[401292021,1768108284742,-869495.03382583,0.00042,5]
[401292022,1768108284754,-200.0,0.00042,120]
[401292023,1768108284763,-200.0,0.00042,120]
[401292024,1768108284773,-200.0,0.00042,120]
[401292025,1768108284783,-200.0,0.00042,120]
[401292026,1768108284793,-237.78616035,0.00042,120]
[401292027,1768108284802,-100000.0,0.00042,30]
[401292028,1768108284814,-500.0,0.00042,120]
[401292029,1768108284824,-170.37639641,0.00042,120]
[401292030,1768108284833,-1471.01168678,0.00042,120]
[401292031,1768108284842,-507.37671782,0.00042,120]
[401292032,1768108284852,-247.70692262,0.00042,120]
[401292033,1768108284862,-497.0,0.00042,60]
[401292034,1768108284872,-946408.79630171,0.00042,2]
[401292035,1768108285472,-795.68502437,0.00042,2]
[401292036,1768108285498,-151.0,0.00018,2]
[401292037,1768108285507,-151.0,0.00019,2]
[401292038,1768108285516,-454.21277423,0.00042,2]
[401292039,1768108286841,-424.835634,0.00018,2]
[401292040,1768108286850,-151.0,0.00018,2]
[401292041,1768108286860,-151.0,0.00018,2]
[401292042,1768108286869,-151.0,0.00018,2]
[401292043,1768108286879,-424.835634,0.00018,2]
[401292044,1768108286889,-87.133732,0.00018357,2]
[401292045,1768108632582,6200.0,0.00027397,120]
[401292046,1768108777074,151.28,0.00024891,120]
[401292047,1768108845141,153.1,0.0002739,120]
[401292089,1768109433395,-5000.0,0.000162,5]
[401292090,1768109433408,-281.45868937,0.00016309,2]
[401292091,1768109433419,-468.37495615,0.00016562,2]
[401292092,1768109433442,-361.46786234,0.00016562,2]
[401292093,1768109438288,-370.15718151,0.00016562,2]
[401292094,1768109438300,-509.03,0.00016563,2]
[401292095,1768109438312,-1927.66318088,0.00016563,5]
[401292096,1768109438323,-151.0,0.00016633,2]
[401292097,1768109438335,-151.0,0.00016636,2]
[401292098,1768109438347,-151.0,0.00016636,2]
[401292099,1768109438359,-1000.0,0.00016687,2]
[401292100,1768109438371,-250.0,0.00017,2]
[401292101,1768109438382,-51.6785206,0.00017031,2]
[401292102,1768109438396,-117.2314794,0.00017031,2]
[401292103,1768109438408,-500.0,0.00017073,2]
[401292104,1768109438420,-859.99,0.00017076,2]
[401292105,1768109438431,-200.0,0.00017416,2]
[401292106,1768109438443,-1000.0,0.00017621,2]
[401292107,1768109438454,-1608.73,0.0001779,2]
[401292108,1768109438465,-500.0,0.00017799,2]
[401292109,1768109438476,-500.0,0.00017799,2]
[401292110,1768109438492,-500.0,0.00017799,2]
[401292111,1768109438503,-500.0,0.00017799,2]
[401292112,1768109438515,-500.0,0.00017799,2]
[401292114,1768109438527,-500.0,0.00017799,2]
[401292115,1768109438538,-500.0,0.00017799,2]
[401292116,1768109438549,-500.0,0.00017799,2]
[401292117,1768109438560,-500.0,0.00017799,2]
[401292118,1768109438571,-500.0,0.00017799,2]
[401292120,1768109438583,-500.0,0.00017799,2]
[401292122,1768109438594,-488.99110623,0.00017799,2]
[401292123,1768109438607,-500.0,0.00017799,2]
[401292124,1768109438619,-500.0,0.00017799,2]
[401292125,1768109438630,-500.0,0.00017799,2]
[401292126,1768109438642,-500.0,0.00017799,2]
[401292127,1768109438652,-500.0,0.00017799,2]
[401292128,1768109438664,-500.0,0.00017799,2]
[401292129,1768109438675,-500.0,0.00017799,2]
[401292130,1768109438687,-500.0,0.00017799,2]
[401292131,1768109438698,-500.0,0.00017799,2]
[401292132,1768109438709,-500.0,0.00017799,2]
[401292133,1768109438721,-500.0,0.00017799,2]
[401292134,1768109438732,-500.0,0.00017799,2]
[401292135,1768109438744,-500.0,0.00017799,2]
[401292136,1768109438756,-500.0,0.00017799,2]
[401292137,1768109438767,-500.0,0.00017799,2]
[401292138,1768109438777,-500.0,0.00017799,2]
[401292139,1768109438789,-500.0,0.00017799,2]
[401292140,1768109438800,-500.0,0.00017799,2]
[401292141,1768109438811,-500.0,0.00017799,2]
[401292142,1768109438822,-500.0,0.00017799,2]
[401292143,1768109438833,-500.0,0.00017799,2]
[401292144,1768109438844,-500.0,0.00017799,2]
[401292145,1768109438855,-500.0,0.00017799,2]
[401292146,1768109438867,-500.0,0.00017799,2]
[401292147,1768109438879,-78.52705446,0.00017799,2]
[401292148,1768109438892,-421.47294554,0.00017799,2]
[401292149,1768109438903,-256.28582151,0.00017799,2]
[401292150,1768109438922,-243.71417849,0.00017799,2]
[401292151,1768109438933,-500.0,0.00017799,2]
[401292152,1768109438944,-500.0,0.00017799,2]
[401292153,1768109438956,-500.0,0.00017799,2]
[401292154,1768109438967,-500.0,0.00017799,2]
[401292155,1768109438978,-500.0,0.00017799,2]
[401292156,1768109438989,-500.0,0.00017799,2]
[401292157,1768109438999,-500.0,0.00017799,2]
[401292158,1768109439010,-500.0,0.00017799,2]
[401292159,1768109439021,-500.0,0.00017799,2]
[401292160,1768109439031,-500.0,0.00017799,2]
[401292161,1768109439042,-500.0,0.00017799,2]
[401292162,1768109439053,-13163.57205104,0.000178,2]
[401292163,1768109439071,-1893.48,0.000178,2]
[401292164,1768109439085,-667.66233388,0.000178,2]
[401292165,1768109439098,-1089.81245063,0.000178,2]
[401292166,1768109439119,-2008.95009054,0.000178,2]
[401292167,1768109440319,-288.92248487,0.000178,2]
[401292169,1768109440487,-653.68413682,0.000178,2]
[401292170,1768109440546,-342.26322073,0.000178,2]
[401292171,1768109440561,-2040.10421713,0.000178,2]
[401292172,1768109440575,-2243.60294719,0.000178,2]
[401292173,1768109440605,-244054.74158485,0.000178,2]
[401292174,1768109440619,-200.0,0.0001782,2]
[401292175,1768109440631,-317.74732338,0.0001782,2]
[401292176,1768109440642,-250.0,0.0001782,2]
[401292177,1768109440651,-1608.73,0.0001789,2]
[401292178,1768109440661,-102099.85155667,0.000179,2]
[401292179,1768109440673,-575.59548218,0.000179,3]
[401292180,1768109440684,-500.0,0.00017973,2]
[401292181,1768109440695,-227.26396522,0.00017973,2]
[401292182,1768109440706,-501.57832546,0.00017973,2]
[401292183,1768109440717,-500.0,0.00017973,2]
[401292184,1768109440728,-500.0,0.00017973,2]
[401292185,1768109440740,-501.25271617,0.00017973,2]
[401292186,1768109440750,-181.18183049,0.00017973,2]
[401292187,1768109440762,-1608.73,0.00017973,2]
[401292188,1768109440773,-150.0,0.00017973,2]
[401292189,1768109440784,-50395.02,0.00017983,2]
[401292190,1768109440795,-684.92602064,0.0001799,2]
[401292191,1768109441511,-684.92602064,0.0001799,2]
[401292192,1768109441542,-684.92602064,0.0001799,2]
[401292193,1768109441567,-1608.73,0.0001799,2]
[401292194,1768109441584,-1608.73,0.0001799,2]
[401292195,1768109441595,-170.57681429,0.00017999,2]
[401292196,1768109441605,-300.0,0.00017999,2]
[401292197,1768109441616,-666.0,0.00017999,2]
[401292198,1768109441626,-410.81316023,0.00017999,2]
[401292199,1768109441636,-271.74941747,0.00017999,2]
[401292200,1768109441647,-500.0,0.00017999,2]
[401292201,1768109441656,-500.0,0.00017999,2]
[401292202,1768109441666,-500.0,0.00017999,2]
[401292203,1768109441676,-1878.058,0.00018,2]
[401292204,1768109441686,-1000.0,0.00018,2]
[401292205,1768109441695,-1000.0,0.00018,2]
[401292206,1768109441704,-197.994,0.00018,2]
[401292207,1768109441716,-1000.0,0.00018,2]
[401292208,1768109441726,-283.92,0.00018,2]
[401292209,1768109441736,-3879871.68524695,0.00018,2]
[401292210,1768109441755,-2561.72960359,0.00018,2]
[401292211,1768109441767,-642.2986497,0.00018,2]
[401292212,1768109444555,-1398.55657837,0.00018,2]
[401292213,1768109444568,-18508.1988637,0.00018,2]
[401292214,1768109444618,-488.750531,0.00018,2]
[401292215,1768109444629,-1109.62727993,0.00018,2]
[401292216,1768109444640,-1208.0,0.00018,2]
[401292217,1768109444677,-804.9096726,0.00018,2]
[401292218,1768109444689,-878.45672583,0.00018,2]
[401292219,1768109444700,-47738.47514348,0.00018,2]
[401292220,1768109444711,-804.27294865,0.00018,2]
[401292221,1768109444737,-507.20615774,0.00018,2]
[401292222,1768109444748,-328.26696821,0.00018,2]
[401292223,1768109446210,-1874.82800906,0.00018,2]
[401292224,1768109446378,-739.94,0.00018,2]
[401292225,1768109446390,-1066.45008916,0.00018,2]
[401292232,1768110327696,-150.0,0.000162,2]
[401292233,1768110327718,-150.0,0.000162,2]
[401292234,1768110327739,-71.46315586,0.000162,2]
[401292235,1768110342700,-78.53684414,0.000162,2]
[401292236,1768110342723,-150.0,0.000162,2]
[401292237,1768110342748,-71.46315586,0.000162,2]
[401292238,1768110344783,-78.53684414,0.000162,2]
[401292239,1768110344804,-147.01819826,0.000162,2]
[401292240,1768110346328,-5.04733483,0.000162,2]
[401292241,1768110346350,-152.68088658,0.000162,2]
[401292242,1768110346372,-97.27177859,0.000162,2]
[401292243,1768110348510,-52.72822141,0.000162,2]
[401292244,1768110348531,-151.98869862,0.000162,2]
[401292245,1768110348552,-79.09316218,0.00016425,2]
[401292246,1768110350064,-70.90683782,0.00016425,2]
[401292247,1768110350085,-110.93091767,0.0001665,2]
[401292249,1768110432749,-39.06908233,0.0001665,2]
[401292250,1768110432773,-150.0,0.00016875,2]
[401292251,1768110432796,-224.39,0.0001691,2]
[401292252,1768110432818,-169.59494076,0.00016913,2]
[401292253,1768110434221,-406.03393071,0.00016913,2]
[401292254,1768110436621,-269.03291142,0.00016913,2]
[401292255,1768110439078,-151.0,0.00016252,2]
[401292256,1768110439100,-107.65715323,0.00016913,2]
[401292257,1768110444883,-187.54007036,0.00016913,2]
[401292258,1768110447112,-242.18816119,0.00016913,2]
[401292259,1768110451431,-151.0,0.00016526,2]
[401292260,1768110451453,-78.46265551,0.00016913,2]
[401292261,1768110453466,-151.0,0.00016526,2]
[401292262,1768110453487,-45.02603487,0.00016913,2]
[401292263,1768110455437,-200.09909953,0.00016913,2]
[401292264,1768110459207,-253.42816147,0.00016913,2]
[401292265,1768110460735,-161.61997633,0.00016913,2]
[401292266,1768110462457,-195.12385201,0.00016913,2]
[401292267,1768110465047,-252.88906652,0.00016913,2]
[401292268,1768110477712,-164.50904285,0.00016913,2]
[401292269,1768110492705,-151.0,0.000165,2]
[401292270,1768110492727,-55.84494324,0.00016913,2]
[401292271,1768110492762,-178.54691438,0.00017,2]
[401292272,1768110507791,-151.0,0.00016531,2]
[401292273,1768110507814,-151.0,0.00016531,2]
[401292274,1768110507839,-71.45308562,0.00017,2]
[401292275,1768110507863,-54.90595723,0.00017053,2]
[401292276,1768110523144,-151.0,0.00016535,2]
[401292277,1768110523167,-151.0,0.00016535,2]
[401292278,1768110523195,-37.50576321,0.00017053,2]
[401292279,1768110527729,-181.56508013,0.00017053,2]
[401292280,1768110527751,-39.62601707,0.00017073,2]
[401292281,1768110531090,-246.79437214,0.00017073,2]
[401292282,1768110533085,-177.00021117,0.000165,2]
[401292283,1768110535581,-163.53488248,0.000165,2]
[401292284,1768110538821,-98.72490635,0.000165,2]
[401292285,1768110538845,-134.86220995,0.00016533,2]
[401292286,1768110543088,-16.13779005,0.00016533,2]
[401292287,1768110543110,-151.0,0.00016533,2]
[401292288,1768110543133,-28.55467566,0.00017073,2]
[401292289,1768110545934,-185.02493513,0.00017073,2]
[401292290,1768110545958,-150.0,0.000171,2]
[401292291,1768110545981,-10.21862543,0.000171,2]
[401292292,1768110548473,-139.78137457,0.000171,2]
[401292293,1768110548501,-141.23394379,0.000171,2]
[401292294,1768110555263,-151.0,0.00016533,2]
[401292295,1768110555289,-49.0,0.00016533,2]
[401292296,1768110567736,-151.0,0.00016521,2]
[401292297,1768110567759,-15.1328202,0.00016521,2]
[401292298,1768110570305,-135.8671798,0.00016521,2]
[401292299,1768110570328,-102.0,0.00016533,2]
[401292300,1768110570349,-79.2682328,0.00017073,2]
[401292301,1768110574073,-166.66,0.00017073,2]
[401292302,1768110598229,-151.0,0.0001685,2]
[401292303,1768110598255,-151.0,0.0001685,2]
[401292304,1768110598279,-57.03772668,0.00017073,2]
[401292306,1768110600492,-157.16686072,0.00017073,2]
[401292307,1768110603611,-39.8671798,0.00017073,2]
[401292308,1768110603636,-8.76605621,0.000171,2]
[401292309,1768110603659,-240.7500382,0.00017181,2]
[401292310,1768110606680,-155.62838882,0.00017181,2]
[401292311,1768110609021,-182.13039526,0.00017181,2]
[401292312,1768110610722,-260.88983182,0.00017181,2]
[401292313,1768110614514,-271.52471324,0.00017181,2]
[401292316,1768110631469,-151.0,0.00016847,2]
[401292317,1768110631480,-151.0,0.00016847,2]
[401292318,1768110631490,-27.06663266,0.00017181,2]
[401292319,1768110631500,-150.0,0.00017325,2]
[401292320,1768110631510,-120.93336734,0.00017432,2]
[401292321,1768110631531,-45.72663266,0.00017432,2]
[401292322,1768110631541,-150.0,0.0001755,2]
[401292323,1768110631550,-1000.0,0.00017621,2]
[401292324,1768110631560,-741.02399241,0.000177,2]
[401292345,1768110637536,-258.97600759,0.000177,2]
[401292346,1768110637546,-150.0,0.00017775,2]
[401292347,1768110637556,-64.57837536,0.00017796,2]
[401292348,1768110637567,-322.7392854,0.00017796,2]
[401292349,1768110637579,-287.43023924,0.00017796,2]
[401292350,1768110637588,-139.03047536,0.00017798,2]
[401292351,1768110637599,-160.96952464,0.00017798,2]
[401292352,1768110637607,-480.0,0.00017798,2]
[401292353,1768110637616,-512.95474933,0.00017799,2]
[401292354,1768110637626,-163.13133772,0.00017799,2]
[401292355,1768110637635,-225.79132058,0.000178,2]
[401292356,1768110637645,-429.93581575,0.00017821,2]
[401292358,1768110639531,-653.7286811,0.00017796,2]
[401292359,1768110639542,-346.2713189,0.00017796,2]
[401292360,1768110639552,-579.7686791,0.00017821,2]
[401292361,1768110639698,-313.9119775,0.00017821,2]
[401292362,1768110639710,-591.11871023,0.00017821,2]
[401292363,1768110639721,-291.71752767,0.00017821,2]
[401292364,1768110639753,-173.01865182,0.00017821,2]
[401292365,1768110639763,-233.93825818,0.00017833,2]
[401292366,1768110639811,-2145.53310389,0.00017833,2]
[401292367,1768110639821,-2379.47136207,0.00017844,2]
[401292368,1768110639831,-225.79132056,0.00017849,2]
[401292369,1768110639841,-2379.47136207,0.00017855,2]
[401292370,1768110639851,-2379.47136207,0.00017866,2]
[401292371,1768110639860,-2379.47136207,0.00017878,2]
[401292372,1768110639869,-412.14,0.00017885,2]
[401292373,1768110639879,-200.0,0.00017885,2]
[401292374,1768110639889,-500.0,0.00017885,2]
[401292375,1768110639899,-500.0,0.00017885,2]
[401292376,1768110639908,-500.0,0.00017885,2]
[401292377,1768110639918,-500.0,0.00017885,2]
[401292378,1768110639928,-500.0,0.00017885,2]
[401292379,1768110639938,-500.0,0.00017885,2]
[401292380,1768110639947,-500.0,0.00017885,2]
[401292381,1768110639957,-249.92155797,0.00017885,2]
[401292382,1768110639967,-500.0,0.00017885,2]
[401292383,1768110639977,-500.0,0.00017885,2]
[401292384,1768110639987,-500.0,0.00017885,2]
[401292385,1768110639996,-200.0,0.00017885,2]
[401292386,1768110640006,-500.0,0.00017885,2]
[401292387,1768110640015,-500.0,0.00017885,2]
[401292388,1768110640024,-204.00685465,0.00017885,2]
[401292389,1768110640034,-506.63776315,0.00017885,2]
[401292390,1768110640044,-151.0,0.00017885,2]
[401292391,1768110640054,-151.0,0.00017885,2]
[401292392,1768110640063,-151.0,0.00017885,2]
[401292393,1768110640072,-151.0,0.00017885,2]
[401292394,1768110640081,-151.0,0.00017885,2]
[401292395,1768110640090,-151.0,0.00017885,2]
[401292396,1768110640100,-151.0,0.00017885,2]
[401292397,1768110640109,-151.0,0.00017885,2]
[401292398,1768110640119,-151.0,0.00017885,2]
[401292399,1768110640128,-151.0,0.00017885,2]
[401292400,1768110640137,-151.0,0.00017885,2]
[401292401,1768110640147,-151.0,0.00017885,2]
[401292402,1768110640156,-151.0,0.00017885,2]
[401292403,1768110640166,-643.5,0.00017886,2]
[401292404,1768110640176,-643.5,0.00017886,2]
[401292405,1768110640186,-643.5,0.00017886,2]
[401292406,1768110640196,-643.5,0.00017886,2]
[401292407,1768110640207,-643.5,0.00017886,2]
[401292408,1768110640216,-1165.089,0.00017886,2]
[401292409,1768110640226,-2379.47136207,0.00017889,2]
[401292410,1768110640236,-150.0,0.00017895,2]
[401292411,1768110640245,-287.03016651,0.00017895,2]
[401292412,1768110640255,-410.81316023,0.00017895,2]
[401292413,1768110640264,-271.74941747,0.00017895,2]
[401292414,1768110640273,-500.0,0.00017895,2]
[401292415,1768110640283,-500.0,0.00017895,2]
[401292416,1768110640293,-500.0,0.00017895,2]
[401292417,1768110640306,-500.0,0.00017895,2]
[401292418,1768110640316,-500.0,0.00017895,2]
[401292419,1768110640326,-500.0,0.00017895,2]
[401292420,1768110640336,-304.33234514,0.00017895,2]
[401292421,1768110640347,-500.0,0.00017895,2]
[401292422,1768110640357,-500.0,0.00017895,2]
[401292423,1768110640367,-500.0,0.00017895,2]
[401292424,1768110640378,-500.0,0.00017895,2]
[401292425,1768110640388,-500.0,0.00017895,2]
[401292426,1768110640399,-226.34863202,0.00017895,2]
[401292427,1768110640410,-500.0,0.00017895,2]
[401292428,1768110640421,-500.0,0.00017895,2]
[401292429,1768110640430,-500.0,0.00017895,2]
[401292430,1768110640440,-500.0,0.00017895,2]
[401292431,1768110640449,-500.0,0.00017895,2]
[401292432,1768110640459,-500.0,0.00017895,2]
[401292433,1768110640469,-500.0,0.00017895,2]
[401292434,1768110640479,-500.0,0.00017895,2]
[401292435,1768110640489,-500.0,0.00017895,2]
[401292436,1768110640498,-500.0,0.00017895,2]
[401292437,1768110640508,-500.0,0.00017895,2]
[401292438,1768110640517,-500.0,0.00017895,2]
[401292439,1768110640527,-500.0,0.00017895,2]
[401292440,1768110640537,-500.0,0.00017895,2]
[401292441,1768110640546,-500.0,0.00017895,2]
[401292442,1768110640556,-500.0,0.00017895,2]
[401292443,1768110640566,-500.0,0.00017895,2]
[401292444,1768110640575,-500.0,0.00017895,2]
[401292445,1768110640585,-500.0,0.00017895,2]
[401292446,1768110640595,-500.0,0.00017895,2]
[401292447,1768110640605,-500.0,0.00017895,2]
[401292448,1768110640614,-500.0,0.00017895,2]
[401292449,1768110640625,-500.0,0.00017895,2]
[401292450,1768110640634,-500.0,0.00017895,2]
[401292451,1768110640644,-500.0,0.00017895,2]
[401292452,1768110640654,-500.0,0.00017895,2]
[401292453,1768110640664,-500.0,0.00017895,2]
[401292454,1768110640674,-250.00000001,0.00017895,2]
[401292455,1768110640683,-500.0,0.00017895,2]
[401292456,1768110640692,-500.0,0.00017895,2]
[401292457,1768110640702,-500.0,0.00017895,2]
[401292458,1768110640711,-500.0,0.00017895,2]
[401292459,1768110640720,-500.0,0.00017895,2]
[401292460,1768110640729,-500.0,0.00017895,2]
[401292461,1768110640739,-500.0,0.00017895,2]
[401292462,1768110640748,-500.0,0.00017895,2]